fUSD/lending_fUSD_20250826
["ID","MTS","AMOUNT","RATE_DAILY","PERIOD"]
[381483202,1756230719937,-400.0,0.00027945,5]
[381483203,1756230719946,-717.51,0.00027945,5]
[381483204,1756230719955,-690.59,0.00027945,5]
[381483205,1756230719965,-400.0,0.00027945,5]
[381483206,1756230719975,-400.0,0.00027945,5]
[381483207,1756230719984,-400.0,0.00027945,5]
[381483208,1756230719993,-400.0,0.00027945,5]
[381483209,1756230720003,-400.0,0.00027945,5]
[381483210,1756230720012,-702.95,0.00027945,5]
[381483211,1756230720021,-401.49222735,0.00027945,5]
[381483212,1756230720031,-1643.75,0.00027945,5]
[381483213,1756230720040,-956.27,0.00027945,5]
[381483214,1756230720049,-400.0,0.00027945,5]
[381483215,1756230720058,-1080.95,0.00027945,5]
[381483216,1756230720067,-400.0,0.00027945,5]
[381483217,1756230720077,-704.75,0.00027945,5]
[381483218,1756230720086,-1188.76,0.00027945,5]
[381483219,1756230720095,-400.0,0.00027945,5]
[381483220,1756230720104,-830.28,0.00027945,5]
[381483221,1756230720113,-884.15,0.00027945,5]
[381483222,1756230720122,-883.77,0.00027945,5]
[381483223,1756230720131,-4381.4,0.00027945,5]
[381483224,1756230720140,-903.37,0.00027945,5]
[381483225,1756230720149,-1272.98,0.00027945,5]
[381483226,1756230720158,-176.31330681,0.00027945,5]
[381483227,1756230720167,-400.0,0.00027945,5]
[381483228,1756230720177,-400.0,0.00027945,5]
[381483229,1756230720187,-400.0,0.00027945,5]
[381483230,1756230720197,-1035.82,0.00027945,5]
[381483231,1756230720207,-440.04,0.00027945,5]
[381483232,1756230720217,-588.09,0.00027945,5]
[381483233,1756230720227,-1060.85,0.00027945,5]
[381483234,1756230720237,-729.67,0.00027945,5]
[381483235,1756230720247,-734.09,0.00027945,5]
[381483236,1756230720258,-400.0,0.00027945,5]
[381483237,1756230720269,-818.36,0.00027945,5]
[381483238,1756230720279,-400.0,0.00027945,5]
[381483239,1756230720289,-1006.17,0.00027945,5]
[381483240,1756230720299,-400.0,0.00027945,5]
[381483241,1756230720309,-1343.19,0.00027945,5]
[381483242,1756230720319,-752.5,0.00027945,5]
[381483243,1756230720329,-1000.26,0.00027945,5]
[381483244,1756230720339,-400.0,0.00027945,5]
[381483245,1756230720349,-400.0,0.00027945,5]
[381483246,1756230720359,-1006.41,0.00027945,5]
[381483247,1756230720369,-927.58,0.00027945,5]
[381483248,1756230720378,-465.25,0.00027945,5]
[381483249,1756230720388,-1229.66,0.00027945,5]
[381483250,1756230720398,-819.77,0.00027945,5]
[381483251,1756230720408,-574.94,0.00027945,5]
[381483252,1756230720420,-1087.43,0.00027945,5]
[381483253,1756230720430,-400.0,0.00027945,5]
[381483254,1756230720440,-1561.08,0.00027945,5]
[381483255,1756230720450,-605.76,0.00027945,5]
[381483256,1756230720460,-633.29,0.00027945,5]
[381483257,1756230720472,-1303.8,0.00027945,5]
[381483258,1756230720482,-673.66,0.00027945,5]
[381483259,1756230720492,-951.85,0.00027945,5]
[381483260,1756230720502,-727.97,0.00027945,5]
[381483261,1756230720514,-400.0,0.00027945,5]
[381483262,1756230720524,-761.39,0.00027945,5]
[381483263,1756230720535,-823.04,0.00027945,5]
[381483264,1756230720546,-995.91,0.00027945,5]
[381483265,1756230720557,-726.7,0.00027945,5]
[381483266,1756230720567,-2954.18,0.00027945,5]
[381483267,1756230720577,-932.17,0.00027945,5]
[381483268,1756230720586,-777.25,0.00027945,5]
[381483269,1756230720596,-810.82,0.00027945,5]
[381483270,1756230720606,-674.55,0.00027945,5]
[381483271,1756230720616,-400.0,0.00027945,5]
[381483272,1756230720627,-400.0,0.00027945,5]
[381483273,1756230720638,-524.65,0.00027945,5]
[381483274,1756230720650,-894.99,0.00027945,5]
[381483275,1756230720664,-610.96,0.00027945,5]
[381483276,1756230720675,-400.0,0.00027945,5]
[381483277,1756230720686,-433.22,0.00027945,5]
[381483278,1756230720696,-1276.0,0.00027945,5]
[381483279,1756230720708,-705.71,0.00027945,5]
[381483280,1756230720718,-1048.88,0.00027945,5]
[381483281,1756230720729,-916.09,0.00027945,5]
[381483282,1756230720740,-635.0,0.00027945,5]
[381483283,1756230720752,-277.94681966,0.00027945,5]
[381483284,1756230720763,-400.0,0.00027945,5]
[381483285,1756230720773,-735.88,0.00027945,5]
[381483286,1756230720785,-1476.54,0.00027945,5]
[381483287,1756230720796,-586.32,0.00027945,5]
[381483288,1756230720806,-420.01,0.00027945,5]
[381483289,1756230720816,-1424.15,0.00027945,5]
[381483290,1756230720826,-865.15,0.00027945,5]
[381483291,1756230720836,-400.0,0.00027945,5]
[381483292,1756230720846,-711.61,0.00027945,5]
[381483293,1756230720857,-400.0,0.00027945,5]
[381483294,1756230720868,-400.0,0.00027945,5]
[381483295,1756230720878,-657.69,0.00027945,5]
[381483296,1756230720888,-2547.01,0.00027945,5]
[381483297,1756230720900,-569.85,0.00027945,5]
[381483298,1756230720911,-924.7,0.00027945,5]
[381483299,1756230720921,-1447.41,0.00027945,5]
[381483300,1756230720932,-400.0,0.00027945,5]
[381483301,1756230720942,-947.0,0.00027945,5]
[381483302,1756230720952,-1186.06,0.00027945,5]
[381483303,1756230720963,-1125.16,0.00027945,5]
[381483304,1756230720975,-1017.63,0.00027945,5]
[381483305,1756230720985,-509.43,0.00027945,5]
[381483306,1756230720995,-629.18,0.00027945,5]
[381483307,1756230721007,-1490.01,0.00027945,5]
[381483308,1756230721018,-1054.6,0.00027945,5]
[381483309,1756230721028,-516.44,0.00027945,5]
[381483310,1756230721039,-682.69,0.00027945,5]
[381483311,1756230721049,-1009.65,0.00027945,5]
[381483312,1756230721060,-810.92,0.00027945,5]
[381483313,1756230721071,-883.73,0.00027945,5]
[381483314,1756230721081,-1283.33,0.00027945,5]
[381483315,1756230721092,-1591.74,0.00027945,5]
[381483316,1756230721102,-817.88,0.00027945,5]
[381483317,1756230721112,-657.14,0.00027945,5]
[381483318,1756230721122,-559.69,0.00027945,5]
[381483319,1756230721132,-534.08871774,0.00027945,5]
[381483320,1756230721142,-400.0,0.00027945,5]
[381483321,1756230721152,-434.49,0.00027945,5]
[381483322,1756230721162,-543.23,0.00027945,5]
[381483323,1756230721173,-839.27,0.00027945,5]
[381483324,1756230721184,-694.48,0.00027945,5]
[381483325,1756230721194,-400.0,0.00027945,5]
[381483326,1756230721204,-1164.11,0.00027945,5]
[381483327,1756230721215,-400.0,0.00027945,5]
[381483328,1756230721226,-2471.18,0.00027945,5]
[381483329,1756230721236,-735.71,0.00027945,5]
[381483330,1756230721247,-923.85,0.00027945,5]
[381483331,1756230721258,-602.76,0.00027945,5]
[381483332,1756230721268,-400.0,0.00027945,5]
[381483333,1756230721279,-400.0,0.00027945,5]
[381483334,1756230721288,-1015.23,0.00027945,5]
[381483335,1756230721299,-1297.06,0.00027945,5]
[381483336,1756230721309,-400.0,0.00027945,5]
[381483337,1756230721319,-1022.18,0.00027945,5]
[381483338,1756230721330,-413.82,0.00027945,5]
[381483339,1756230721340,-400.0,0.00027945,5]
[381483340,1756230721350,-400.0,0.00027945,5]
[381483341,1756230721360,-400.0,0.00027945,5]
[381483342,1756230721377,-435.62,0.00027945,5]
[381483343,1756230721397,-677.17,0.00027945,5]
[381483344,1756230721415,-481.79,0.00027945,5]
[381483345,1756230721434,-869.43,0.00027945,5]
[381483346,1756230721452,-400.0,0.00027945,5]
[381483347,1756230721467,-400.0,0.00027945,5]
[381483348,1756230721486,-1587.32,0.00027945,5]
[381483349,1756230721505,-400.7035993,0.00027945,5]
[381483350,1756230721524,-404.82,0.00027945,5]
[381483351,1756230721542,-1419.4,0.00027945,5]
[381483352,1756230721559,-795.96,0.00027945,5]
[381483353,1756230721577,-400.0,0.00027945,5]
[381483354,1756230721591,-400.0,0.00027945,5]
[381483355,1756230721610,-400.0,0.00027945,5]
[381483356,1756230721622,-1337.38,0.00027945,5]
[381483357,1756230721640,-400.0,0.00027945,5]
[381483358,1756230721653,-1193.06,0.00027945,5]
[381483359,1756230721672,-643.48,0.00027945,5]
[381483360,1756230721689,-1262.91,0.00027945,5]
[381483361,1756230721705,-400.0,0.00027945,5]
[381483362,1756230721721,-1405.96,0.00027945,5]
[381483363,1756230721738,-1694.19,0.00027945,5]
[381483364,1756230721754,-400.0,0.00027945,5]
[381483365,1756230721770,-847.69,0.00027945,5]
[381483366,1756230721785,-1265.35,0.00027945,5]
[381483367,1756230721800,-1432.19,0.00027945,5]
[381483368,1756230721815,-837.85,0.00027945,5]
[381483369,1756230721829,-1066.71,0.00027945,5]
[381483370,1756230721844,-1337.65,0.00027945,5]
[381483371,1756230721859,-243.93090036,0.00027945,5]
[381483372,1756230721883,-983.38,0.00027945,5]
[381483373,1756230721897,-2638.84,0.00027945,5]
[381483374,1756230721914,-448.3,0.00027945,5]
[381483375,1756230721929,-510.88,0.00027945,5]
[381483376,1756230721946,-1419.37,0.00027945,5]
[381483377,1756230721960,-1378.39,0.00027945,5]
[381483378,1756230721975,-1097.19,0.00027945,5]
[381483379,1756230721989,-866.21,0.00027945,5]
[381483380,1756230722005,-436.05,0.00027945,5]
[381483381,1756230722021,-968.52,0.00027945,5]
[381483382,1756230722038,-1097.27,0.00027945,5]
[381483383,1756230722056,-400.0,0.00027945,5]
[381483384,1756230722071,-400.0,0.00027945,5]
[381483385,1756230722087,-400.0,0.00027945,5]
[381483386,1756230722101,-898.9,0.00027945,5]
[381483387,1756230722115,-894.21,0.00027945,5]
[381483388,1756230722131,-400.0,0.00027945,5]
[381483389,1756230722147,-1054.02,0.00027945,5]
[381483390,1756230722161,-486.16,0.00027945,5]
[381483391,1756230722179,-400.0,0.00027945,5]
[381483392,1756230722193,-2351.0,0.00027945,5]
[381483393,1756230722208,-400.0,0.00027945,5]
[381483394,1756230722222,-990.16,0.00027945,5]
[381483395,1756230722236,-400.0,0.00027945,5]
[381483396,1756230722251,-400.0,0.00027945,5]
[381483397,1756230722265,-708.23,0.00027945,5]
[381483398,1756230722280,-400.82952405,0.00027945,5]
[381483399,1756230722295,-812.56,0.00027945,5]
[381483400,1756230722310,-1481.93,0.00027945,5]
[381483401,1756230722325,-400.0,0.00027945,5]
[381483402,1756230722340,-1309.05,0.00027945,5]
[381483403,1756230722354,-400.0,0.00027945,5]
[381483404,1756230722369,-12576.35,0.00027945,5]
[381483405,1756230722383,-400.0,0.00027945,5]
[381483406,1756230722399,-400.0,0.00027945,5]
[381483407,1756230722413,-752.61,0.00027945,5]
[381483408,1756230722428,-716.67,0.00027945,5]
[381483409,1756230722444,-440.38,0.00027945,5]
[381483410,1756230722458,-1045.55,0.00027945,5]
[381483411,1756230722474,-1040.13,0.00027945,5]
[381483412,1756230722489,-610.13,0.00027945,5]
[381483413,1756230722504,-1232.14,0.00027945,5]
[381483414,1756230722521,-400.0,0.00027945,5]
[381483415,1756230722537,-453.93,0.00027945,5]
[381483416,1756230722552,-400.0,0.00027945,5]
[381483417,1756230722568,-513.88,0.00027945,5]
[381483418,1756230722583,-956.51,0.00027945,5]
[381483419,1756230722598,-400.0,0.00027945,5]
[381483420,1756230722613,-1004.11,0.00027945,5]
[381483421,1756230722628,-2716.73,0.00027945,5]
[381483422,1756230722642,-1144.57,0.00027945,5]
[381483423,1756230722659,-1348.02,0.00027945,5]
[381483424,1756230722673,-400.0,0.00027945,5]
[381483425,1756230722688,-400.0,0.00027945,5]
[381483426,1756230722704,-400.0,0.00027945,5]
[381483427,1756230722718,-795.95,0.00027945,5]
[381483428,1756230722737,-720.68,0.00027945,5]
[381483429,1756230722757,-400.0,0.00027945,5]
[381483430,1756230722780,-583.37,0.00027945,5]
[381483431,1756230722795,-1164.87,0.00027945,5]
[381483432,1756230722810,-400.0,0.00027945,5]
[381483433,1756230722824,-796.49,0.00027945,5]
[381483434,1756230722839,-1208.11,0.00027945,5]
[381483435,1756230722854,-1234.75,0.00027945,5]
[381483436,1756230722868,-2365.85,0.00027945,5]
[381483437,1756230722882,-1090.57,0.00027945,5]
[381483438,1756230722897,-725.15,0.00027945,5]
[381483439,1756230722911,-400.0,0.00027945,5]
[381483440,1756230722927,-1204.31,0.00027945,5]
[381483441,1756230722943,-400.0,0.00027945,5]
[381483442,1756230722958,-774.92,0.00027945,5]
[381483443,1756230722974,-607.03,0.00027945,5]
[381483444,1756230722989,-1391.48,0.00027945,5]
[381483445,1756230723003,-400.0,0.00027945,5]
[381483446,1756230723019,-1460.18,0.00027945,5]
[381483447,1756230723035,-949.27,0.00027945,5]
[381483448,1756230723051,-1381.91,0.00027945,5]
[381483449,1756230723067,-1529.6,0.00027945,5]
[381483450,1756230723083,-400.0,0.00027945,5]
[381483451,1756230723098,-1214.51,0.00027945,5]
[381483452,1756230723114,-1218.74,0.00027945,5]
[381483453,1756230723130,-681.18,0.00027945,5]
[381483454,1756230723146,-846.41,0.00027945,5]
[381483455,1756230723162,-870.23,0.00027945,5]
[381483456,1756230723178,-935.16,0.00027945,5]
[381483457,1756230723194,-2660.08,0.00027945,5]
[381483458,1756230723210,-1268.24,0.00027945,5]
[381483459,1756230723226,-400.71643781,0.00027945,5]
[381483460,1756230723244,-960.42,0.00027945,5]
[381483461,1756230723260,-727.24,0.00027945,5]
[381483462,1756230723276,-836.11,0.00027945,5]
[381483463,1756230723292,-402.23006481,0.00027945,5]
[381483464,1756230723309,-418.26254422,0.00027945,5]
[381483465,1756230723325,-1206.86,0.00027945,5]
[381483466,1756230723341,-400.0,0.00027945,5]
[381483467,1756230723358,-696.66,0.00027945,5]
[381483468,1756230723374,-1646.5,0.00027945,5]
[381483469,1756230723390,-5333.52,0.00027945,5]
[381483470,1756230723406,-400.0,0.00027945,5]
[381483471,1756230723421,-446.0,0.00027945,5]
[381483472,1756230723437,-400.0,0.00027945,5]
[381483473,1756230723454,-400.97427663,0.00027945,5]
[381483474,1756230723471,-400.0,0.00027945,2]
[381483475,1756230723487,-604.92,0.00027945,5]
[381483476,1756230723497,-859.49,0.00027945,5]
[381483477,1756230723507,-1578.12,0.00027945,5]
[381483478,1756230723516,-928.83,0.00027945,5]
[381483479,1756230723526,-714.94,0.00027945,5]
[381483480,1756230723536,-400.0,0.00027945,5]
[381483481,1756230723546,-1272.58,0.00027945,5]
[381483482,1756230723556,-752.58,0.00027945,5]
[381483483,1756230723565,-400.0,0.00027945,5]
[381483484,1756230723575,-400.0,0.00027945,5]
[381483485,1756230723596,-636.63,0.00027945,5]
[381483486,1756230723606,-400.0,0.00027945,2]
[381483487,1756230723615,-400.0,0.00027945,5]
[381483488,1756230723626,-400.0,0.00027945,5]
[381483489,1756230723636,-242.49372148,0.00027945,5]
[381483490,1756230723646,-525.95,0.00027945,5]
[381483491,1756230723657,-760.31,0.00027945,5]
[381483492,1756230723668,-1703.78,0.00027945,5]
[381483493,1756230723678,-607.66,0.00027945,5]
[381483494,1756230723688,-400.0,0.00027945,5]
[381483495,1756230723698,-1622.59,0.00027945,5]
[381483496,1756230723708,-1000.0,0.00027957,2]
[381483497,1756230723717,-1000.0,0.0002796,2]
[381483498,1756230723728,-528.0,0.00027962,14]
[381483499,1756230723740,-528.0,0.00027962,14]
[381483500,1756230723751,-150.0,0.00027973,5]
[381483501,1756230723760,-1000.0,0.00028,9]
[381483502,1756230723770,-1000.0,0.00028,9]
[381483503,1756230723780,-1000.0,0.00028,9]
[381483504,1756230723789,-462.0,0.00028,12]
[381483505,1756230723800,-1000.0,0.00028,7]
[381483506,1756230723810,-1000.0,0.00028,7]
[381483507,1756230723820,-1000.0,0.00028,7]
[381483508,1756230723830,-1000.0,0.00028,7]
[381483509,1756230723841,-328.376947,0.00028,14]
[381483510,1756230723850,-279.08,0.00028,2]
[381483511,1756230723861,-448.26174169,0.00028,2]
[381483512,1756230723870,-13208.63084603,0.00028,2]
[381483513,1756230723880,-160.0,0.00028,2]
[381483514,1756230723890,-264.17261692,0.00028,2]
[381483515,1756230723899,-640.0,0.00028,2]
[381483516,1756230723909,-844.63891918,0.00028,30]
[381483517,1756230723919,-458.7662338,0.00028,30]
[381483518,1756230723929,-160.0,0.00028,30]
[381483519,1756230723940,-308.95,0.00028,2]
[381483520,1756230723949,-3391.41,0.00028,7]
[381483521,1756230723959,-1768.12,0.00028,7]
[381483522,1756230723969,-2241.2,0.00028,7]
[381483523,1756230723980,-4000.0,0.00028,4]
[381483524,1756230723991,-2684.69,0.00028,7]
[381483525,1756230724013,-1425.0,0.00028004,2]
[381483526,1756230724032,-1425.0,0.00028014,2]
[381483527,1756230724045,-1425.0,0.00028027,2]
[381483528,1756230724056,-242.21709933,0.00028047,2]
[381483529,1756230724066,-1000.0,0.00028049,2]
[381483530,1756230724076,-1181.34,0.00028082,30]
[381483531,1756230724086,-186.04,0.00028082,2]
[381483532,1756230724096,-200.0,0.0002809,30]
[381483533,1756230724109,-296.0,0.0002809,2]
[381483534,1756230724121,-213.0,0.0002809,2]
[381483535,1756230724132,-8849.05659034,0.000281,2]
[381483536,1756230724142,-67349.88,0.000281,7]
[381483537,1756230724151,-807.0,0.000281,2]
[381483538,1756230724162,-150.0,0.00028112,2]
[381483539,1756230724172,-1800.0,0.00028117,7]
[381483540,1756230724182,-3000.0,0.00028117,7]
[381483544,1756230724889,-150.87131939,0.0002813,2]
[381483545,1756230724918,-150.0,0.00028138,2]
[381483546,1756230724950,-150.0,0.00028165,2]
[381483547,1756230724974,-346.92554585,0.00028172,2]
[381483548,1756230724995,-277.35679052,0.00028172,2]
[381483549,1756230725013,-720.20962278,0.00028173,2]
[381483550,1756230725026,-150.0,0.0002819,2]
[381483551,1756230725035,-4933.39,0.000282,7]
[381483552,1756230725046,-489.99943124,0.00028204,2]
[381483554,1756230725056,-500.0,0.00028218,10]
[381483555,1756230725065,-528.05245049,0.00028218,5]
[381483556,1756230725074,-1142.86,0.00028218,5]
[381483557,1756230725083,-1254.63,0.00028218,5]
[381483558,1756230725093,-1057.93,0.00028218,5]
[381483560,1756230725103,-1079.24,0.00028218,5]
[381483561,1756230725113,-500.0,0.00028218,5]
[381483562,1756230725123,-3055.95,0.00028218,5]
[381483563,1756230725133,-1650.32,0.00028218,5]
[381483564,1756230725143,-13513.14,0.00028218,5]
[381483565,1756230725153,-2253.65,0.00028218,5]
[381483566,1756230725163,-1270.75,0.00028218,5]
[381483567,1756230725173,-2157.11,0.00028218,5]
[381483568,1756230725183,-1950.58,0.00028218,5]
[381483569,1756230725193,-1356.06,0.00028218,5]
[381483571,1756230725204,-1000.0,0.00028218,2]
[381483572,1756230725215,-528.93,0.00028218,5]
[381483573,1756230725225,-1314.24,0.00028218,5]
[381483574,1756230725236,-500.0,0.00028218,5]
[381483575,1756230725246,-1468.69,0.00028218,5]
[381483576,1756230725256,-809.74,0.00028218,5]
[381483577,1756230725266,-1206.09,0.00028218,5]
[381483578,1756230725276,-741.88,0.00028218,5]
[381483579,1756230725286,-1611.27,0.00028218,5]
[381483580,1756230725296,-1224.97,0.00028218,5]
[381483581,1756230725306,-1049.32,0.00028218,5]
[381483582,1756230725316,-286.90757515,0.00028218,5]
[381483583,1756230725326,-500.0,0.00028218,5]
[381483584,1756230725336,-976.61,0.00028218,5]
[381483585,1756230725346,-1611.56,0.00028218,5]
[381483586,1756230725356,-869.98,0.00028218,5]
[381483587,1756230725365,-1131.94,0.00028218,5]
[381483588,1756230725377,-1000.0,0.00028218,2]
[381483589,1756230725386,-500.0,0.00028218,5]
[381483590,1756230725397,-782.57,0.00028218,5]
[381483591,1756230725407,-1548.86,0.00028218,5]
[381483592,1756230725417,-1331.02,0.00028218,5]
[381483593,1756230725427,-1391.3,0.00028218,5]
[381483594,1756230725437,-1191.31,0.00028218,5]
[381483595,1756230725446,-500.0,0.00028218,5]
[381483596,1756230725456,-1107.49,0.00028218,5]
[381483597,1756230725466,-1320.74,0.00028218,5]
[381483598,1756230725476,-1054.46,0.00028218,5]
[381483599,1756230725486,-400.0,0.00028218,5]
[381483600,1756230725495,-1150.33,0.00028218,5]
[381483601,1756230725506,-819.86,0.00028218,5]
[381483602,1756230725515,-400.0,0.00028218,5]
[381483603,1756230725525,-500.0,0.00028218,5]
[381483604,1756230725534,-933.75,0.00028218,5]
[381483605,1756230725544,-1547.78,0.00028218,5]
[381483606,1756230725553,-500.0,0.00028218,5]
[381483607,1756230725563,-1438.18,0.00028218,5]
[381483608,1756230725573,-6789.96,0.00028218,5]
[381483609,1756230725582,-1497.03,0.00028218,5]
[381483610,1756230725592,-1497.12,0.00028218,5]
[381483611,1756230725602,-400.0,0.00028218,5]
[381483612,1756230725611,-500.0,0.00028218,5]
[381483613,1756230725621,-863.08,0.00028218,5]
[381483614,1756230725631,-753.29,0.00028218,5]
[381483615,1756230725641,-787.78,0.00028218,5]
[381483616,1756230725651,-1613.31,0.00028218,5]
[381483617,1756230725664,-773.75,0.00028218,5]
[381483618,1756230725674,-586.3,0.00028218,5]
[381483619,1756230725684,-530.09,0.00028218,5]
[381483620,1756230725694,-1037.63,0.00028218,5]
[381483621,1756230725704,-1217.55,0.00028218,5]
[381483622,1756230725715,-1228.91,0.00028218,5]
[381483623,1756230725725,-400.0,0.00028218,5]
[381483624,1756230725735,-1141.77,0.00028218,5]
[381483625,1756230725745,-1590.13,0.00028218,5]
[381483626,1756230725755,-924.3,0.00028218,5]
[381483627,1756230725766,-575.23,0.00028218,5]
[381483628,1756230725776,-664.99,0.00028218,5]
[381483629,1756230725786,-778.5,0.00028218,5]
[381483630,1756230725795,-1457.28,0.00028218,5]
[381483631,1756230725805,-724.45,0.00028218,5]
[381483632,1756230725814,-847.97,0.00028218,5]
[381483633,1756230725824,-630.74,0.00028218,5]
[381483634,1756230725833,-1505.52,0.00028218,5]
[381483635,1756230725842,-717.92,0.00028218,5]
[381483636,1756230725851,-431.96,0.00028218,5]
[381483637,1756230725860,-1179.57,0.00028218,5]
[381483638,1756230725869,-1699.29,0.00028218,5]
[381483639,1756230725879,-854.23,0.00028218,5]
[381483640,1756230725889,-628.02,0.00028218,5]
[381483641,1756230725898,-1139.37,0.00028218,5]
[381483642,1756230725908,-480.43,0.00028218,5]
[381483643,1756230725917,-683.47,0.00028218,5]
[381483644,1756230725926,-1228.89,0.00028218,5]
[381483645,1756230725935,-400.0,0.00028219,5]
[381483646,1756230725945,-1156.63,0.00028219,5]
[381483647,1756230725954,-409.10850117,0.00028219,5]
[381483648,1756230725963,-814.45,0.00028219,5]
[381483649,1756230725974,-400.0,0.00028219,5]
[381483650,1756230725983,-1203.77,0.00028219,5]
[381483651,1756230725992,-313.54655064,0.00028219,5]
[381483652,1756230726002,-261.57635973,0.00028219,5]
[381483653,1756230726011,-400.0,0.00028219,5]
[381483654,1756230726020,-400.0,0.00028219,5]
[381483655,1756230726029,-677.3,0.00028219,5]
[381483656,1756230726038,-1373.11,0.00028219,5]
[381483657,1756230726049,-412.27,0.00028219,5]
[381483658,1756230726058,-276.86553473,0.00028219,5]
[381483659,1756230726067,-466.37,0.00028219,5]
[381483660,1756230726077,-884.22,0.00028219,5]
[381483661,1756230726086,-579.9,0.00028219,5]
[381483662,1756230726095,-400.0,0.00028219,5]
[381483663,1756230726105,-716.72,0.00028219,5]
[381483664,1756230726115,-400.0,0.00028219,5]
[381483665,1756230726124,-400.0,0.00028219,5]
[381483666,1756230726133,-400.0,0.00028219,5]
[381483667,1756230726142,-503.27,0.00028219,5]
[381483668,1756230726151,-400.0,0.00028219,5]
[381483669,1756230726160,-400.0,0.00028219,5]
[381483670,1756230726170,-400.0,0.00028219,5]
[381483671,1756230726178,-783.4,0.00028219,5]
[381483672,1756230726189,-400.0,0.00028219,5]
[381483673,1756230726198,-400.0,0.00028219,5]
[381483674,1756230726209,-1036.02,0.00028219,5]
[381483675,1756230726218,-473.09,0.00028219,5]
[381483676,1756230726228,-400.46307279,0.00028219,5]
[381483677,1756230726239,-400.0,0.00028219,5]
[381483678,1756230726249,-440.17,0.00028219,5]
[381483679,1756230726258,-1153.6,0.00028219,5]
[381483680,1756230726268,-985.74,0.00028219,5]
[381483681,1756230726278,-400.0,0.00028219,5]
[381483682,1756230726287,-640.2,0.00028219,5]
[381483683,1756230726296,-400.0,0.00028219,5]
[381483684,1756230726305,-400.0,0.00028219,5]
[381483685,1756230726315,-400.0,0.00028219,5]
[381483686,1756230726324,-400.0,0.00028219,5]
[381483687,1756230726336,-400.3405157,0.00028219,5]
[381483688,1756230726345,-712.48,0.00028219,5]
[381483689,1756230726355,-400.0,0.00028219,5]
[381483690,1756230726364,-400.0,0.00028219,5]
[381483691,1756230726373,-400.0,0.00028219,5]
[381483692,1756230726382,-700.09,0.00028219,5]
[381483693,1756230726392,-400.0,0.00028219,5]
[381483694,1756230726401,-400.0,0.00028219,5]
[381483695,1756230726411,-400.0,0.00028219,5]
[381483696,1756230726420,-693.81,0.00028219,5]
[381483697,1756230726429,-707.36,0.00028219,5]
[381483698,1756230726438,-406.06,0.00028219,5]
[381483699,1756230726448,-431.16,0.00028219,5]
[381483700,1756230726457,-400.0,0.00028219,5]
[381483701,1756230726466,-701.05,0.00028219,5]
[381483702,1756230726475,-400.0,0.00028219,5]
[381483703,1756230726484,-400.0,0.00028219,5]
[381483704,1756230726493,-547.99,0.00028219,5]
[381483705,1756230726502,-929.8,0.00028219,5]
[381483706,1756230726512,-400.0,0.00028219,5]
[381483707,1756230726522,-1530.59,0.00028219,5]